Cogmind - Beta 14 @@@ ROGUE MODE // 2024.08.14 @ 01:15:33 Player: cptwinky Result: Destroyed by Y3-71Y(E) with Gauss Rifle Performance ------------- Evolutions (2) 1000 Regions Visited (8) 1600 Robots Destroyed (195) 975 Value Destroyed (6375) 6375 Prototype IDs (12) 240 Alien Tech Used (0) 0 Bonus (235) 235 TOTAL SCORE: 10425 Bonus ------- High Alert Combat Kills 47 Follower Combat Kills 323 Friendly Fire -135 Cogmind --------- Core Integrity 0/550 Matter 261/300 Energy 280/280 System Corruption 0% Temperature Cool (0) Movement Treading (240) Ox1 Location -8/Scraptown Parts ------- > --- POWER (1) -------- Cooled Ion Engine > --- PROPULSION (3) --- Improved Treads Improved Treads Overtuned Treads > --- UTILITY (4) ------ High-capacity Storage Unit Advanced Targeting Computer Makeshift Medium Armor Plating Makeshift Medium Armor Plating > --- WEAPON (3) ------- Enhanced Autogun Gauss Rifle Heavy Battle Rifle > --- INVENTORY (20) --- Cooled Ion Engine Hybrid Fission Core Hybrid Fission Core Cooling System Cooling System High-capacity Matter Pod (200) High-capacity Matter Pod (200) High-capacity Matter Pod (200) Makeshift Light Armor Plating Makeshift Medium Armor Plating High-powered Tractor Beam Gauss Rifle Gauss Rifle Rocket Launcher Heavy Missile Launcher Ripper Peak State ------------ > --- POWER ------------ Cooled Ion Engine > --- PROPULSION ------- Tri-treads > --- UTILITY ---------- High-capacity Storage Unit Advanced Targeting Computer Core Analyzer Makeshift Medium Armor Plating > --- WEAPON ----------- Siege Cannon > --- INVENTORY -------- Cooled Ion Engine Improved Treads Improved Treads Improved Treads Improved Treads Cooling System Cooling System High-capacity Matter Pod High-capacity Matter Pod High-capacity Matter Pod High-powered Tractor Beam Improved Assault Rifle Enhanced Autogun Gauss Rifle Gauss Rifle Gauss Rifle Heavy Battle Rifle Rocket Launcher Heavy Missile Launcher Ripper [Rating: 57] Favorites ----------- Power Cooled Ion Engine Engine Cooled Ion Engine Propulsion Light Treads Treads Light Treads Utility High-capacity Storage Unit Device Seismic Detector Storage High-capacity Storage Unit Processor Advanced Targeting Computer Hackware Hacking Suite Protection Light Armor Plating Weapon Spread Laser Energy Gun Spread Laser Energy Cannon Beam Cannon Ballistic Gun Improved Assault Rifle Ballistic Cannon Siege Cannon Launcher Rocket Launcher Special Weapon CPS Tube Slashing Weapon Ripper Special Melee Weapon Improved Datajack Build | -11 -10 -10 -9 -9 -8 -8 -8 -8 ------- Run | Yrd Mat Min Mat Min Mat Sto Rec Scr Slots Evolved 4 | . . . 2 . 2 . . . Power . | . . . . . . . . . Propulsion 1 | . . . 1 . . . . . Utility 2 | . . . 1 . 1 . . . Weapon 1 | . . . . . 1 . . . Parts Attached 174 | 6 13 . 20 12 11 24 4 84 Power 6 | 1 2 . 1 . . 2 . . Engine 6 | 1 2 . 1 . . 2 . . Core . | . . . . . . . . . Reactor . | . . . . . . . . . Propulsion 34 | 2 1 . 5 3 1 8 1 13 Treads 34 | 2 1 . 5 3 1 8 1 13 Leg . | . . . . . . . . . Wheel . | . . . . . . . . . Hover . | . . . . . . . . . Flight . | . . . . . . . . . Utility 63 | 1 4 . 5 5 1 4 1 42 Device 28 | . 1 . 5 3 . 1 . 18 Storage 4 | 1 3 . . . . . . . Processor 3 | . . . . 1 . . . 2 Hackware 1 | . . . . . 1 . . . Protection 27 | . . . . 1 . 3 1 22 Artifact . | . . . . . . . . . Weapon 71 | 2 6 . 9 4 9 10 2 29 Energy Gun 9 | 2 4 . 1 . . . . 2 Energy Cannon 2 | . 1 . . . . 1 . . Ballistic Gun 40 | . 1 . 5 2 8 6 . 18 Ballistic Cannon 4 | . . . . . . . . 4 Launcher 9 | . . . 3 2 . 3 . 1 Special Weapon 2 | . . . . . . . . 2 Impact Weapon . | . . . . . . . . . Slashing Weapon 4 | . . . . . 1 . 1 2 Piercing Weapon . | . . . . . . . . . Special Melee Weapon 1 | . . . . . . . 1 . Unidentified Prototypes 3 | . . . 1 . . 2 . . Parts Lost 8 | . 1 . . . . . . 7 Power . | . . . . . . . . . Propulsion 4 | . . . . . . . . 4 Utility 2 | . . . . . . . . 2 Weapon 2 | . 1 . . . . . . 1 Highest Loss Streak 1 | . 1 . . . . . . 1 To Critical Strikes . | . . . . . . . . . Average Slot Usage (%) 95 | . 95 100 99 100 98 99 98 89 Engine 10 | . 14 14 11 11 9 9 9 9 Treads 26 | . 28 28 32 33 27 27 27 21 Device 3 | . 5 . 11 9 . . . . Storage 10 | . 14 14 11 11 9 9 9 9 Processor 8 | . . . . 1 9 9 9 16 Hackware 1 | . . . . . 9 9 9 . Protection 10 | . 4 14 11 11 9 8 9 10 Energy Gun 8 | . 22 28 11 . . . . 4 Ballistic Gun 12 | . 4 . 10 21 24 26 22 11 Special Melee Weapon 1 | . . . . . . . 1 2 Peak Build Rating 57 | 6 11 11 20 20 28 30 31 57 Average Rating 27 | 4 8 11 17 18 24 27 30 40 On Entrance 16 | . 6 11 11 19 18 28 30 28 Naked Turns . | . . . . . . . . . Heaviest Build 77 | 12 52 52 58 58 62 62 60 77 Greatest Support 69 | 40 40 40 60 60 60 66 69 69 Greatest Overweight (x) 1 | . 1 1 . . 1 1 . 1 Average Overweight (x) . | . . 1 . . . . . . Largest Inventory Capacity 20 | 8 20 20 20 20 20 20 20 20 Average Capacity 19 | 7 13 20 20 20 20 20 20 20 Most Carried 20 | 6 19 20 20 20 20 20 20 20 Average Carried 18 | 3 11 19 19 19 19 19 19 18 Final Capacity 20 | 8 20 20 20 20 20 20 20 20 Final Carried 20 | 6 19 20 20 20 20 20 20 16 Class Distribution -------------------- 45% | Mutant 29% | Gunner 13% | Commander-Mutant 7% | Commander-Gunner Dominant Class ---------------- Mutant | -10/Materials Mutant | -10/Mines Mutant | -9/Materials Mutant | -9/Mines Gunner | -8/Materials Gunner | -8/Storage Commander-Gunner | -8/Recycling Gunner | -8/Scraptown Resources | -11 -10 -10 -9 -9 -8 -8 -8 -8 ----------- Run | Yrd Mat Min Mat Min Mat Sto Rec Scr Matter Collected 7940 | 179 239 . 289 326 52 714 305 5836 Remotely 3289 | . . . . . . . . 3289 Salvage Created 9098 | . 452 107 623 306 113 1128 160 6209 Parts 510 | . 26 12 63 25 9 62 12 301 Haulers Intercepted 11 | . 1 . 5 . 1 4 . . Recyclers Shooed 6 | . 1 . 2 . . 3 . . Parts Field Recycled . | . . . . . . . . . Retrieved Matter . | . . . . . . . . . Parts Self-Destructed . | . . . . . . . . . Prevented . | . . . . . . . . . Kills | -11 -10 -10 -9 -9 -8 -8 -8 -8 ------- Run | Yrd Mat Min Mat Min Mat Sto Rec Scr Combat Hostiles Destroyed 182 | . 9 7 18 12 1 18 3 114 Guns 103 | . 7 7 10 8 1 14 3 53 Cannons 57 | . . . . . . . . 57 AOE 19 | . 1 . 8 4 . 3 . 3 Classes Destroyed 24 | . 5 . 4 1 . 2 . 12 Worker 4 | . . . 1 1 . 1 . 1 Builder 2 | . . . 2 . . . . . Hauler 11 | . 1 . 5 . 1 4 . . Recycler 2 | . 1 . . . . 1 . . Mechanic 1 | . . . . . . 1 . . Operator 4 | . . . 2 . . . . 2 Watcher 5 | . 1 . 3 . . 1 . . Swarmer 28 | . 3 5 10 7 . 3 . . Grunt 25 | . 6 2 4 4 . 9 . . Brawler 1 | . . . . 1 . . . . Sentry 13 | . . . 4 . 1 5 3 . Hunter 1 | . . . . . . 1 . . Bolteater 6 | . . . . . . . . 6 Federalist 11 | . . . . . . . . 11 Explorer 11 | . . . . . . . . 11 Ranger 11 | . . . . . . . . 11 Guru 9 | . . . . . . . . 9 Scientist 6 | . . . . . . . . 6 Scrapper 39 | . . . . . . . . 39 Elite 21 | . . . . . . . . 21 Zionite 4 | . . . . . . . . 4 Tinkerer 4 | . . . . . . . . 4 Thug 3 | . . . . . . . . 3 Butcher 1 | . . . . . . . . 1 Mutant 1 | . . . . . . . . 1 Best Kill Streak 10 | . 3 4 7 4 1 6 1 10 Combat Bots Only 10 | . 3 4 4 4 1 3 1 10 Max Kills in Single Turn 5 | . 1 2 5 3 1 2 1 2 Gunslinging . | . . . . . . . . . Exploded 3 | . 1 . 3 3 . 2 . 2 Melee . | . . . . . . . . . Uniques/NPCs Destroyed 1 | . . . . . . . . 1 Triborg (-8/Scraptown) Combat | -11 -10 -10 -9 -9 -8 -8 -8 -8 -------- Run | Yrd Mat Min Mat Min Mat Sto Rec Scr Hostile Shots Fired 522 | . 23 12 33 34 6 55 6 353 Missed 153 | . 6 2 9 10 . 17 2 107 Damage Taken 5618 | . 188 108 256 301 88 620 56 4001 Core 659 | . 31 24 . 43 . 91 28 442 Absorbed by Shields . | . . . . . . . . . Reduced by Siege Mode 440 | . . . . . . . . 440 Ignored by Resistances 76 | . . . . . . . . 76 Regen/Repaired (Parts) 113 | . . . . . 55 58 . . Core Remaining (%) 89 | 100 . 78 . 89 . . . . Volleys Fired 472 | . 28 10 40 25 3 55 6 305 Largest 3 | . 2 2 2 2 3 3 3 3 Hottest 154 | . 130 130 130 46 73 81 71 154 Shots Fired 986 | . 56 20 77 48 9 140 21 615 Gun 823 | . 53 20 74 46 9 130 21 470 Cannon 149 | . 3 . . . . 5 . 141 Launcher 12 | . . . 3 2 . 5 . 2 Special 2 | . . . . . . . . 2 Kinetic 831 | . 12 . 14 46 9 130 21 599 Thermal 103 | . 11 20 60 . . . . 12 Explosive 12 | . . . 3 2 . 5 . 2 Electromagnetic 38 | . 33 . . . . 5 . . Robot Hit Streak 27 | . 5 8 18 6 8 16 27 19 Robot Miss Streak 12 | . 6 12 5 2 . 4 1 4 Penetration Max 1 | . . . . . . 1 . 1 Secondary Targets 11 | . 1 2 . 1 . . . 7 Max Gunslinging Chain 1 | . 1 1 . 1 . . . 1 Shots Hit Robots 710 | . 33 16 63 31 5 98 18 446 Core Hits 401 | . 22 26 87 17 3 49 6 191 Critical Kills 1 | . . . . . . . . 1 Critical Parts Destroyed 2 | . . . . . . 1 . 1 Critical Strikes 20 | . . . . . . 1 . 19 Destroy 3 | . . . . . . 1 . 2 Blast 17 | . . . . . . . . 17 Melee Attacks 14 | . . . . . 3 . 1 10 Impact . | . . . . . . . . . Slashing 11 | . . . . . 3 . . 8 Piercing . | . . . . . . . . . Sneak Attacks 3 | . . . . . . . 1 2 Combat Hostiles . | . . . . . . . . . Follow-up Attacks . | . . . . . . . . . Damage Inflicted 22395 | . 502 234 1567 754 84 2015 270 16969 Guns 9867 | . 436 228 913 473 84 1567 270 5896 Cannons 10905 | . 18 . . . . 106 . 10781 Explosions 1590 | . 42 . 633 281 . 342 . 292 Melee . | . . . . . . . . . Ramming 33 | . 6 6 21 . . . . . Kinetic 19080 | . 92 . 100 473 84 1567 270 16494 Thermal 1464 | . 127 228 880 . . 46 . 183 Explosive 1435 | . . . 566 281 . 296 . 292 Electromagnetic 383 | . 277 . . . . 106 . . Impact . | . . . . . . . . . Slashing . | . . . . . . . . . Piercing . | . . . . . . . . . Highest Corruption 4 | . . . . . 1 3 4 4 Average Corruption 2 | . . . . . 1 2 3 1 Corruption Purged . | . . . . . . . . . Corruption Blocked . | . . . . . . . . . Effects 67 | . . . . . . 16 27 24 Message Errors 18 | . . . . . . 2 6 10 Matter Fused 15 | . . . . . . 5 6 4 Heat Flow Errors 10 | . . . . . . 4 3 3 Energy Discharges 7 | . . . . . . 1 3 3 Data Loss (minor) 8 | . . . . . . 3 2 3 Data Loss (major) 2 | . . . . . . . 2 . Misfires 5 | . . . . . . 1 3 1 Alerts 2 | . . . . . . . 2 . Overload Shots . | . . . . . . . . . Overflow Damage 1705 | . . . 51 . . 11 . 1643 Projectiles 1643 | . . . . . . . . 1643 Explosions 62 | . . . 51 . . 11 . . Melee . | . . . . . . . . . Knockbacks 25 | . . . . . . . . 25 Impact . | . . . . . . . . . Kinetic 25 | . . . . . . . . 25 Secondary . | . . . . . . . . . Self-Inflicted Damage 65 | . . . 10 13 . 42 . . Shots 4 | . . . 1 1 . 2 . . Rammed 5 | . 1 1 3 . . . . . Targets Rammed 6 | . 2 1 3 . . . . . Kicked . | . . . . . . . . . Crushed 1 | . 1 . . . . . . . Highest Temperature 324 | . 126 309 96 38 48 324 274 280 Average Temperature 63 | . 50 140 25 8 21 59 89 64 Received Heat Transfer 1833 | . 96 30 72 93 45 198 18 1281 Effects 3 | . . 1 . . . . . 2 Energy Bleed 2 | . . 1 . . . . . 1 Interference 1 | . . . . . . . . 1 Siege Activations 7 | . . . . . . . . 7 Total Turns 1247 | . . . . . . . . 1247 Longest Duration 502 | . . . . . . . . 502 Robots Corrupted 2 | . 1 . . . . 1 . . Combat Hostiles 2 | . 1 . . . . 1 . . Parts Fried 4 | . 3 . . . . 1 . . Impact Corruptions . | . . . . . . . . . Robots Melted 1 | . . . . . . . . 1 Combat Hostiles 1 | . . . . . . . . 1 Parts Melted 12 | . . 2 . . . . . 10 Heat Transferred 1922 | . 122 275 1040 . . 50 . 435 Parts Sabotaged . | . . . . . . . . . Parts Stolen 1 | . . . . . . . . 1 Parts Stripped . | . . . . . . . . . Power Chain Reactions 2 | . 1 . . . . 1 . . Alert | -11 -10 -10 -9 -9 -8 -8 -8 -8 ------- Run | Yrd Mat Min Mat Min Mat Sto Rec Scr Peak Influence 535 | . 215 182 301 334 55 535 96 . Initial 117 | . . 3 40 117 . 22 33 . Average 99 | . 52 39 88 142 15 336 34 . Maximum Alert Level 2 | . 1 . 1 1 . 2 . . Low Security (%) 85 | 100 99 100 93 70 100 19 100 . Level 1 10 | . . . 6 29 . 41 . . Level 2 4 | . . . . . . 38 . . Level 3 . | . . . . . . . . . Level 4 . | . . . . . . . . . Level 5 . | . . . . . . . . . High Security . | . . . . . . . . . Max Security . | . . . . . . . . . Squads Dispatched 5 | . 1 . 1 . 2 1 . . Investigation 2 | . 1 . . . 1 . . . Extermination . | . . . . . . . . . Reinforcement 3 | . . . 1 . 1 1 . . Assault . | . . . . . . . . . Garrison . | . . . . . . . . . Intercept . | . . . . . . . . . Searches Triggered . | . . . . . . . . . Construction Impeded . | . . . . . . . . . Haulers Reinforced . | . . . . . . . . . Active Scanning Responses . | . . . . . . . . . Cargo Convoy Interrupts . | . . . . . . . . . Stealth | -11 -10 -10 -9 -9 -8 -8 -8 -8 --------- Run | Yrd Mat Min Mat Min Mat Sto Rec Scr Distress Signals 8 | . 2 . 3 . 1 2 . . Communications Jammed . | . . . . . . . . . Distress Signals . | . . . . . . . . . Times Spotted 205 | . 17 11 25 13 4 21 3 111 Peak Tracking Total 6 | . 4 3 5 4 3 4 . 6 Tactical Retreats 9 | . 1 . 1 . . 2 . 5 Traps | -11 -10 -10 -9 -9 -8 -8 -8 -8 ------- Run | Yrd Mat Min Mat Min Mat Sto Rec Scr Traps Triggered 2 | . 1 . . . . 1 . . Indirectly . | . . . . . . . . . Trap Hack Attempts . | . . . . . . . . . Triggered . | . . . . . . . . . Disarmed . | . . . . . . . . . Reprogrammed 7 | . 7 . . . . . . . Reused 6 | . 1 . . . . . . 5 Traps Extracted . | . . . . . . . . . Installed 6 | . . . . . . . . 6 Triggered 1 | . 1 . . . . . . . Most Traps Carried 4 | . . . . 4 4 4 4 4 Machines | -11 -10 -10 -9 -9 -8 -8 -8 -8 ---------- Run | Yrd Mat Min Mat Min Mat Sto Rec Scr Machines Disabled 13 | . 1 1 3 . . 1 . 7 Max in Single Turn 3 | . 1 . 3 . . 1 . 1 Machines Repaired . | . . . . . . . . . Machines Dismantled . | . . . . . . . . . Machines Sabotaged . | . . . . . . . . . Overloaded Fab Kills . | . . . . . . . . . Hacking | -11 -10 -10 -9 -9 -8 -8 -8 -8 --------- Run | Yrd Mat Min Mat Min Mat Sto Rec Scr Machines Accessed 32 | . 8 . 9 . 2 7 6 . Terminals 26 | . 7 . 7 . 1 5 6 . Fabricators . | . . . . . . . . . Repair Stations 4 | . 1 . 1 . 1 1 . . Recycling Units 1 | . . . . . . 1 . . Scanalyzers 1 | . . . 1 . . . . . Garrison Access . | . . . . . . . . . Total Hacks 102 | . 32 . 31 . 5 22 12 . Successful 50 | . 13 . 16 . 2 14 5 . Failed 50 | . 19 . 15 . 3 7 6 . Catastrophic 6 | . 1 . 3 . 1 . 1 . Database Lockouts 2 | . . . . . . 1 1 . Manual 61 | . 24 . 18 . 2 12 5 . Terminals 85 | . 30 . 27 . 2 14 12 . Fabricators . | . . . . . . . . . Repair Stations 12 | . 2 . 3 . 3 4 . . Recycling Units 4 | . . . . . . 4 . . Scanalyzers 1 | . . . 1 . . . . . Garrison Access . | . . . . . . . . . Terminal Hacks 22 | . 6 . 6 . . 6 4 . Part Schematic 2 | . 1 . . . . . 1 . Robot Analysis 7 | . 3 . 2 . . 1 1 . Prototype ID Bank 4 | . . . 2 . . 1 1 . Open Door 2 | . . . . . . 2 . . Unreport Threat 2 | . . . . . . 2 . . Locate Traps 2 | . . . 2 . . . . . Reprogram Traps 2 | . 2 . . . . . . . Zone Layout 1 | . . . . . . . 1 . Fabricator Hacks . | . . . . . . . . . Repair Station Hacks 9 | . 1 . 2 . 2 4 . . Scan Component 4 | . . . 1 . 1 2 . . Repair 3 | . . . . . 1 2 . . Refit 2 | . 1 . 1 . . . . . Recycling Unit Hacks 2 | . . . . . . 2 . . Process 1 | . . . . . . 1 . . Retrieve Matter 1 | . . . . . . 1 . . Scanalyzer 1 | . . . 1 . . . . . Insert Component 1 | . . . 1 . . . . . Garrison Access Hacks . | . . . . . . . . . Unauthorized Hacks 16 | . 6 . 7 . . 2 1 . Terminals 15 | . 6 . 7 . . 1 1 . Botnet 4 | . 1 . 1 . . 1 1 . Disrupt 1 | . . . 1 . . . . . Skim 10 | . 5 . 5 . . . . . Fabricators . | . . . . . . . . . Repair Stations . | . . . . . . . . . Recycling Units 1 | . . . . . . 1 . . Reject 1 | . . . . . . 1 . . Scanalyzers . | . . . . . . . . . Garrison Access . | . . . . . . . . . Data Cores Recovered 1 | . . . 1 . . . . . Used . | . . . . . . . . . Hacking Detections 28 | . 8 . 8 . 2 5 5 . Full Trace Events 3 | . . . . . 1 1 1 . Feedback Events 2 | . . . . . 1 . 1 . Corruption 2 | . . . . . 1 . 1 . Feedback Blocked . | . . . . . . . . . Robot Schematics Acquired . | . . . . . . . . . Robots Built . | . . . . . . . . . Authchips . | . . . . . . . . . Time . | . . . . . . . . . Total Robot Build Rating . | . . . . . . . . . Part Schematics Acquired 2 | . 1 . . . . . 1 . Parts Built . | . . . . . . . . . Authchips . | . . . . . . . . . Time . | . . . . . . . . . Total Part Build Rating . | . . . . . . . . . Parts Repaired 3 | . . . . . 1 2 . . Time 90 | . . . . . 32 58 . . Parts Recycled . | . . . . . . . . . Recycled Matter 172 | . . . . . . 172 . . Retrieved Matter 172 | . . . . . . 172 . . Retrieved Components . | . . . . . . . . . Parts Scanalyzed . | . . . . . . . . . Part Schematics Acquired . | . . . . . . . . . Parts Damaged . | . . . . . . . . . Bothacking | -11 -10 -10 -9 -9 -8 -8 -8 -8 ------------ Run | Yrd Mat Min Mat Min Mat Sto Rec Scr Used RIF Installer . | . . . . . . . . . Robots Hacked 3 | . . . . . . . 1 2 Non-combat 1 | . . . . . . . 1 . Combat 2 | . . . . . . . . 2 Robot Hacks Applied 3 | . . . . . . . 1 2 parse_system 2 | . . . . . . . . 2 find_recycling 1 | . . . . . . . 1 . Relay Couplers Released . | . . . . . . . . . Fabnet Peak Effective % . | . . . . . . . . . Robots Rewired . | . . . . . . . . . Allies Hacked . | . . . . . . . . . Hacks Repelled . | . . . . . . . . . Allies | -11 -10 -10 -9 -9 -8 -8 -8 -8 -------- Run | Yrd Mat Min Mat Min Mat Sto Rec Scr Total Allies 16 | . . 5 . 1 . 10 . . Largest Group 10 | . . 5 5 1 . 10 10 10 Highest-Rated Group 173 | . . 85 85 31 . 173 173 173 Highest-Rated Ally 31 | . . 31 31 31 . 29 29 29 Total Orders 41 | . . . . . . . 3 38 STAY 34 | . . . . . . . 2 32 FOLLOW 7 | . . . . . . . 1 6 Ally Attacks 128 | . . 12 39 . . . . 77 Total Damage 1446 | . . 115 479 . . . . 852 Kills 14 | . . 4 2 . . . . 8 Allies Corrupted . | . . . . . . . . . Allies Melted . | . . . . . . . . . Intel | -11 -10 -10 -9 -9 -8 -8 -8 -8 ------- Run | Yrd Mat Min Mat Min Mat Sto Rec Scr Robot Analysis Total 7 | . 3 . 2 . . 1 1 . Derelict Logs Recovered 2 | . . 1 . 1 . . . . Drone Launches . | . . . . . . . . . Drone Recoveries . | . . . . . . . . . Exploration | -11 -10 -10 -9 -9 -8 -8 -8 -8 ------------- Run | Yrd Mat Min Mat Min Mat Sto Rec Scr Turns Passed 14171 | 83 1197 1458 2190 1361 261 886 1107 5628 Spaces Moved 5756 | 46 494 583 964 775 112 350 660 1772 Core 4 | 4 . . . . . . . . Treads 5752 | 42 494 583 964 775 112 350 660 1772 Legs . | . . . . . . . . . Wheels . | . . . . . . . . . Hover . | . . . . . . . . . Flight . | . . . . . . . . . Fastest Speed 50 | 50 160 240 160 160 160 160 160 160 Average Speed 173 | 150 175 240 160 160 167 171 160 171 Slowest Speed 240 | 160 240 240 160 160 240 240 160 240 Overloaded Moves . | . . . . . . . . . Propulsion Burnouts . | . . . . . . . . . Robots Hopped . | . . . . . . . . . Cave-ins Triggered . | . . . . . . . . . Exploration Rate (%) 63 | 5 83 98 64 98 15 51 97 62 Regions Visited 8 Branch Regions 5 Pre-discovered Areas 5 | . 2 . 3 . . . . . Known Exits Taken 3 | . . . . 1 1 1 . . Unknown Exits Taken 5 | 1 1 1 1 . . . 1 . Scrap Searched 6 | . . 1 . 3 . . . 2 Spaces Dug 36 | . . . . 21 3 11 . 1 Terrain Destroyed 283 | . 10 . 73 21 3 50 . 126 Melee 3 | . . . . . 3 . . . Projectile 112 | . . . . . . . . 112 AOE 168 | . 10 . 73 21 . 50 . 14 Terrain Rammed . | . . . . . . . . . Walls Destroyed . | . . . . . . . . . Machines Disabled . | . . . . . . . . . Actions | -11 -10 -10 -9 -9 -8 -8 -8 -8 --------- Run | Yrd Mat Min Mat Min Mat Sto Rec Scr Total 9185 | 57 776 622 1542 857 178 534 700 3919 Wait 2521 | . 189 26 477 37 38 84 26 1644 Move 5748 | 45 493 582 963 774 111 349 659 1772 Hop . | . . . . . . . . . Pick Up 100 | 6 26 2 15 2 6 7 1 35 Fast Attach 33 | 6 5 . 5 1 1 3 . 12 Attach 30 | . 1 . 2 . 3 . . 24 Detach 28 | . 5 . 1 . . . . 22 Swap 111 | . 7 . 13 11 7 21 4 48 Drop 116 | . 20 1 23 7 6 15 3 41 Fire 472 | . 28 10 40 25 3 55 6 305 Melee 14 | . . . . . 3 . 1 10 Ram . | . . . . . . . . . Kick . | . . . . . . . . . Crush 6 | . 2 1 3 . . . . . Escape Stasis . | . . . . . . . . . Rewire . | . . . . . . . . . Trap 6 | . . . . . . . . 6 Miscellaneous . | . . . . . . . . . Route ------- -11/Scrapyard -10/Materials (discovered 2 exits: *Mat / [*Min]) -10/Mines (discovered 2 exits: *Mat x2) -9/Materials (discovered 4 exits: *Mat x3 / [*Min]) -9/Mines (discovered 2 exits: *Mat x2) -8/Materials (discovered 3 exits: *Fac / *Sto x2) -8/Storage (discovered 2 exits: Fac / *Rec) -8/Recycling (discovered 2 exits: [*Fac] / [*Scr]) -8/Scraptown (discovered 1 exit: [*Fac]) History --------- Turn | Location | Event 3 | -11/Scrapyard | Discovered new exit (range 15) 84 | -11/Scrapyard | Entered Materials 313 | -10/Materials | Build established: Mutant 334 | -10/Materials | Discovered new exit (range 16) 762 | -10/Materials | Discovered new exit (range 9) 868 | -10/Materials | Learned Storage stockpile data 901 | -10/Materials | Learned location of Mines (-9) 935 | -10/Materials | Learned location of Recycling (-8) 937 | -10/Materials | Learned Storage stockpile data 938 | -10/Materials | Learned location of 1 exit from Storage 951 | -10/Materials | Learned 2 Storage zone layouts 1281 | -10/Materials | Entered Mines 1320 | -10/Mines | Deemed a non-threat by the Exiles lab entrance 1504 | -10/Mines | Received a Rocket Launcher from a helpful Derelict 1543 | -10/Mines | Learned Materials security intel 1567 | -10/Mines | Discovered new exit (range 10) 1797 | -10/Mines | Assisted by bots powering up and referring to "LRC-V3" 1971 | -10/Mines | Discovered new exit (range 12) 2739 | -10/Mines | Entered Materials 2739 | -9/Materials | Accompanied by 5 allies 2739 | -9/Materials | Evolved 2 slots: Propulsion x1, Utility x1 2744 | -9/Materials | Led the pair of lost Derelicts to an unsafe place 2967 | -9/Materials | Lost 5 allies 3535 | -9/Materials | Discovered new exit (range 16) 3610 | -9/Materials | Discovered new exit (range 16) 4172 | -9/Materials | Learned location of Zion (-6) 4283 | -9/Materials | Loaded intel: 2 recycling unit locations 4325 | -9/Materials | Loaded intel: 2 repair station locations 4413 | -9/Materials | Learned location of Storage (-8) 4456 | -9/Materials | Learned Materials security intel 4511 | -9/Materials | Identified exit to Materials 4929 | -9/Materials | Entered Mines 5073 | -9/Mines | Found a hidden stash of uninstalled traps 5171 | -9/Mines | A weapon hastily lodged in a ceiling crevice suddenly fell to the ground 5269 | -9/Mines | Discovered exit to Materials (range 11) 5331 | -9/Mines | Received a Mining Laser from a helpful Derelict 5915 | -9/Mines | Joined a pair of Derelicts in attacking an 0b10 outpost 6290 | -9/Mines | Entered Materials 6290 | -8/Materials | Evolved 2 slots: Utility x1, Weapon x1 6291 | -8/Materials | Identified exit to Storage 6384 | -8/Materials | Repaired Autogun 6488 | -8/Materials | Discovered new exit (range 9) 6551 | -8/Materials | Entered Storage 6552 | -8/Storage | Identified exit to Recycling 6553 | -8/Storage | Identified exit to Factory 6790 | -8/Storage | Build established: Gunner 6840 | -8/Storage | Repaired Lgt. Armor Plating 6874 | -8/Storage | Repaired Rocket Launcher 7183 | -8/Storage | Central database locked down 7375 | -8/Storage | Used back door to open Recycling access 7399 | -8/Storage | Assisted by bots powering up and referring to "LRC-V3" 7437 | -8/Storage | Entered Recycling 7437 | -8/Recycling | Accompanied by 10 allies 7651 | -8/Recycling | Discovered new exit (range 11) 7705 | -8/Recycling | Build established: Commander-Gunner 8485 | -8/Recycling | Scanned before Scraplab entrance 8516 | -8/Recycling | Entered Scraplab 8540 | -8/Recycling | Discovered new exit (range 3) 8544 | -8/Recycling | Entered Scraptown 8544 | -8/Scraptown | Accompanied by 10 allies 8544 | -8/Scraptown | System corruption cleaned by C-Scrubber 8643 | -8/Scraptown | Build established: Commander-Mutant 8810 | -8/Scraptown | Discovered new exit (range 11) 8906 | -8/Scraptown | Visited Assassins FH 8921 | -8/Scraptown | Visited Comm Corps 9035 | -8/Scraptown | Heard Great Nut preacher, LISTEN AND RECITE! 9113 | -8/Scraptown | Visited Awakened 9132 | -8/Scraptown | Visited Fellowship of the Rings 9585 | -8/Scraptown | Visited Shadow of the Wyrm 9604 | -8/Scraptown | Visited The Evicted 10198 | -8/Scraptown | Attacked by Scraptown defenders 10205 | -8/Scraptown | Destroyed Triborg 10261 | -8/Scraptown | Found Tri-treads 10268 | -8/Scraptown | Found Siege Cannon 10315 | -8/Scraptown | Lost 8 allies 10362 | -8/Scraptown | Destroyed 10 combat bots 10390 | -8/Scraptown | Found PL-3XN's Ring of Power 10546 | -8/Scraptown | Build established: Gunner 10896 | -8/Scraptown | Destroyed 9 combat bots 12098 | -8/Scraptown | System corruption cleaned by C-Scrubber 12384 | -8/Scraptown | System corruption cleaned by C-Scrubber 13054 | -8/Scraptown | Core integrity fell below 50% 13100 | -8/Scraptown | Destroyed 7 combat bots 13211 | -8/Scraptown | Destroyed 7 combat bots 13323 | -8/Scraptown | Core integrity fell below 20% 13877 | -8/Scraptown | System corruption cleaned by C-Scrubber 14059 | -8/Scraptown | Build established: Scavenger-Tank 14147 | -8/Scraptown | Visited A0-MCA Data Center 14172 | -8/Scraptown | Destroyed by Y3-71Y(E) with Gauss Rifle Last Messages --------------- 13921_ Ovr. Treads suddenly begins malfunctioning. 13950_ Ovr. Treads recovered from malfunction. 13950_ GE-IR5(c) destroyed. 13999_ Slug penetrates 3K-ZAG(c). 14002_ 3K-ZAG(c) destroyed. 14007_ Acquired 20 matter. 14009_ I4-KCV(j) destroyed. 14030_ Ovr. Treads suddenly begins malfunctioning. 14054_ Acquired 12 matter. 14058_ Acquired Blade Trap. 14067_ Acquired Mak. Light Armor Plating. 14068_ Dropped Blade Trap. 14068_ Installed Blade Trap. 14107_ Slug penetrates WA-CYT(c). 14110_ Destroyed Gravmag System. 14110_ Slug penetrates WA-CYT(c). 14113_ GA-J55(j) destroyed. 14116_ WA-CYT(c) destroyed. 14123_ Acquired 28 matter. 14172_ Penetrated by Slug. Map ----- +----------------------------------------------------+ | #????????????????????????????????????????????????? | | #????????????????????????????????????????????????? | | #????????????????????????????????????????????????? | | #????????????????????????????????????????????????? | | #????????????????????????????????????????????????? | | ?????????????????????????????????????????????????? | | ?????????????????????????????????????????????????? | | ?????????????????????????????????????????????????? | | ?????????????????????????????????????????????????? | | ?????????????????????????????????????????????????? | | ?????????????????????????????????????????????????? | | ?????????????????????????????????????????????????? | | ##??????????????"""??????????????????????????????? | | ""???????????""""""??????????????????????????????? | | ""???????????""""""??????????????????????????????? | | "#??????????"""""""?????????????????????????????? | | ""#????????#""" """#???????????????????????????? | | ""#????????#""" """#???????????????????????????? | | "#????????#""" "!"#???????????????????????????? | | "#????????#"""" """#???????????????????????????? | | "#??????????"" """#???????????????????????????? | | "#???????????? ?????????????????????????????? | | "#?????????????# #??????????????????????????????? | | ####????##?##### ########### ###????????????????? | | #???? ??#"""" """"""""""" """"""?????????????? | | #???? ?#" @ ????????? | | #??## ??#" ????????? | | #??# ??#" ????????? | | #??# ##?#" ?????????? | | ####["###" ?????????? | | =% # #!% "" """"""""""""""""""""??????????? | | % =!#/=[["""" """"""""""""""""??????????????? | | **!=#%!!*"""" ! ""###### ######??????????????? | | *!/[#*[%!*""" ""#????? ???????????????????? | | [=!=[!=!#=!" ""#????? ???????????????????? | | =[*=#%%*#""=" ""#????? ????????????????????? | | *!*![%!!#"""" ""#???????????????????????????? | | !!=!!%%!#"""" ""#???????????????????????????? | | *=!**[=!#####" "" ?????????????????????????? | | =![==*!##???#" "" ?????????????????????????? | | [*===*###???#" ""# ?????????????????????????? | | !!*[!=!!"??? ""#???????????????????????????? | | =%[=!![ "??? ""#???????????????????????????? | | !![]==* "??? ""#???????????????????????????? | | [!== = "??? ""#???????????????????????????? | | !! "??? ""????????????????????????????? | | *! "???? ""????????????????????????????? | | ! "???? !%"?????????????????????????????? | | [ "???? ! ?????????????????????????????? | | / "???? ??????????????????????????????? | +----------------------------------------------------+ Best States ------------- Heat Dissipation 53 Energy Generation 14 Energy Capacity 280 Matter Stores 300 Matter Capacity 300 Sight Range 16 Terrain Scan Density 10 Armor Coverage 450 Resistance: TH 15 Evasion (%) 40 Targeting Accuracy 8 Core Analysis 6 Recoil Reduction 3 Offensive Hacking 10 Trap Extractor Capacity 4 Item Schematics ----------------- Huge Storage Unit | -10/Materials | Hacked Minigun | -8/Recycling | Hacked Robot Schematics ------------------ None Fabricated ------------ Nothing Alien Tech Used ----------------- None Achievements -------------- None Challenges ------------ None Game ------ Seed MetaEncryptedWartreads Manual? 0 Play Time 01:11:43 Cumulative 1643.7 hours Start 2024.08.13 @ 04:37:21 End 2024.08.14 @ 01:15:33 Sessions 5 Manual Loads 0 Difficulty Rogue Special Mode None Game No. 1122 Rogue 1118 Adventurer 4 Explorer 0 Win Type - Total 209 Types 156/11/15/9/2/1/3/8/4 Lore% 97 Gallery% 96 Achievement% 98 Wizard Run 0 Options --------- Layout 2 ASCII 0 Keyboard 1 Movement Vi Keybinds 0 Fullscreen 0 Font 24/Terminus Map View 59x48 Zoom Use 0% Tactical HUD 1 Map Filters NONE Filters NONE Steam 1 RUN: d88b2121-ea30-4852-ba2e-d2fe40a31ebe